fUST/lending_fUST_20251219
["ID","MTS","AMOUNT","RATE_DAILY","PERIOD"]
[399075209,1766103065904,-655.27,0.00054246,120]
[399075210,1766103065914,-500.0,0.00054246,120]
[399075211,1766103065923,-627.9,0.00054246,120]
[399075212,1766103065933,-500.0,0.00054246,120]
[399075213,1766103065942,-796.43,0.00054246,120]
[399075214,1766103065951,-705.3,0.00054246,120]
[399075215,1766103065960,-704.94,0.00054246,21]
[399075216,1766103065969,-802.08,0.00054246,120]
[399075217,1766103065979,-500.0,0.00054246,120]
[399075218,1766103065988,-657.76,0.00054246,120]
[399075219,1766103065997,-1497.98,0.00054246,120]
[399075220,1766103066007,-500.0,0.00054246,120]
[399075221,1766103066016,-2437.85,0.00054246,3]
[399075222,1766103066025,-629.41,0.00054246,120]
[399075223,1766103066035,-1535.62,0.00054246,120]
[399075224,1766103066044,-500.0,0.00054246,120]
[399075225,1766103066053,-4331.02,0.00054246,120]
[399075226,1766103066062,-500.0,0.00054246,120]
[399075227,1766103066071,-641.82,0.00054246,120]
[399075228,1766103066081,-534.04,0.00054246,120]
[399075229,1766103066090,-534.27,0.00054246,120]
[399075230,1766103066099,-611.77,0.00054246,120]
[399075231,1766103066108,-500.0,0.00054246,120]
[399075232,1766103066117,-638.77360693,0.00054246,120]
[399075233,1766103066127,-682.25,0.00054246,120]
[399075234,1766103066136,-833.32,0.00054246,120]
[399075235,1766103066145,-735.72,0.00054246,120]
[399075236,1766103066155,-1167.0,0.00054246,120]
[399075237,1766103066163,-500.0,0.00054246,120]
[399075238,1766103066173,-1143.45,0.00054246,120]
[399075239,1766103066182,-500.0,0.00054246,120]
[399075240,1766103066191,-572.22,0.00054246,120]
[399075241,1766103066200,-821.33,0.00054246,120]
[399075242,1766103066210,-1008.83,0.00054246,120]
[399075243,1766103066220,-153.0,0.00054247,30]
[399075244,1766103066229,-338.41641089,0.00054426,120]
[399075245,1766103066239,-165.65323134,0.00054426,120]
[399075246,1766103066248,-1000.0,0.000545,120]
[399075247,1766103066257,-686.3,0.0005452,120]
[399075248,1766103066267,-849.44,0.0005452,120]
[399075249,1766103066276,-1097.88,0.0005452,120]
[399075250,1766103066285,-500.0,0.0005452,120]
[399075251,1766103066294,-530.58,0.0005452,120]
[399075252,1766103066303,-1257.84,0.0005452,120]
[399075253,1766103066312,-818.83,0.0005452,120]
[399075254,1766103066322,-1022.93,0.0005452,120]
[399075255,1766103066331,-806.72,0.0005452,120]
[399075256,1766103066340,-527.41,0.0005452,120]
[399075257,1766103066349,-520.31,0.0005452,120]
[399075258,1766103066358,-871.78,0.0005452,120]
[399075259,1766103066368,-500.0,0.0005452,120]
[399075260,1766103066377,-500.0,0.0005452,120]
[399075261,1766103066386,-1078.25,0.0005452,120]
[399075262,1766103066397,-258.1,0.0005452,120]
[399075263,1766103066407,-1005.34,0.0005452,120]
[399075264,1766103066419,-703.1,0.0005452,120]
[399075265,1766103066429,-655.27,0.0005452,120]
[399075266,1766103066439,-500.0,0.0005452,120]
[399075267,1766103066448,-627.9,0.0005452,120]
[399075268,1766103066458,-500.0,0.0005452,120]
[399075269,1766103066468,-796.43,0.0005452,120]
[399075270,1766103066477,-705.3,0.0005452,120]
[399075271,1766103066486,-704.94,0.0005452,21]
[399075272,1766103066495,-802.08,0.0005452,120]
[399075273,1766103066505,-500.0,0.0005452,120]
[399075274,1766103066522,-657.76,0.0005452,120]
[399075275,1766103066531,-1497.98,0.0005452,120]
[399075276,1766103066540,-500.0,0.0005452,120]
[399075277,1766103066549,-2437.85,0.0005452,3]
[399075278,1766103066558,-629.41,0.0005452,120]
[399075279,1766103066568,-1535.62,0.0005452,120]
[399075280,1766103066577,-500.0,0.0005452,120]
[399075281,1766103066587,-4331.02,0.0005452,120]
[399075282,1766103066596,-500.0,0.0005452,120]
[399075283,1766103066606,-641.82,0.0005452,120]
[399075284,1766103066616,-534.04,0.0005452,120]
[399075285,1766103066625,-534.27,0.0005452,120]
[399075286,1766103066635,-611.77,0.0005452,120]
[399075287,1766103066644,-500.0,0.0005452,120]
[399075288,1766103066654,-682.25,0.0005452,120]
[399075289,1766103066663,-833.32,0.0005452,120]
[399075290,1766103066672,-735.72,0.0005452,120]
[399075291,1766103066682,-1167.0,0.0005452,120]
[399075292,1766103066691,-500.0,0.0005452,120]
[399075293,1766103066700,-1143.45,0.0005452,120]
[399075294,1766103066709,-500.0,0.0005452,120]
[399075295,1766103066719,-572.22,0.0005452,120]
[399075296,1766103066728,-821.33,0.0005452,120]
[399075297,1766103066737,-1008.83,0.0005452,120]
[399075298,1766103066747,-274.17,0.000546,30]
[399075299,1766103066757,-4500.15760001,0.0005468,120]
[399075300,1766103066767,-349.0,0.00054685,120]
[399075301,1766103066777,-158.54796033,0.00054742,120]
[399075302,1766103066788,-716.28,0.0005479,10]
[399075303,1766103066799,-686.3,0.00054794,120]
[399075304,1766103066811,-849.44,0.00054794,120]
[399075305,1766103066821,-1097.88,0.00054794,120]
[399075306,1766103066831,-500.0,0.00054794,120]
[399075307,1766103066840,-530.58,0.00054794,120]
[399075308,1766103066851,-1257.84,0.00054794,120]
[399075309,1766103066861,-818.83,0.00054794,120]
[399075310,1766103066873,-1022.93,0.00054794,120]
[399075311,1766103066883,-806.72,0.00054794,120]
[399075312,1766103066894,-527.41,0.00054794,120]
[399075313,1766103066905,-520.31,0.00054794,120]
[399075314,1766103066914,-871.78,0.00054794,120]
[399075315,1766103066924,-636.8,0.00054794,120]
[399075316,1766103066934,-500.0,0.00054794,120]
[399075317,1766103066944,-1078.25,0.00054794,120]
[399075318,1766103066955,-1005.34,0.00054794,120]
[399075319,1766103066965,-703.1,0.00054794,120]
[399075320,1766103066975,-655.27,0.00054794,120]
[399075321,1766103066984,-322.65,0.00054794,120]
[399075322,1766103066994,-627.9,0.00054794,120]
[399075323,1766103067003,-500.0,0.00054794,120]
[399075324,1766103067013,-796.43,0.00054794,120]
[399075325,1766103067023,-705.3,0.00054794,120]
[399075326,1766103067032,-704.94,0.00054794,21]
[399075327,1766103067041,-802.08,0.00054794,120]
[399075328,1766103067050,-500.0,0.00054794,120]
[399075329,1766103067059,-657.76,0.00054794,120]
[399075330,1766103067068,-1497.98,0.00054794,120]
[399075331,1766103067077,-367.23,0.00054794,120]
[399075332,1766103067086,-2437.85,0.00054794,3]
[399075333,1766103067095,-629.41,0.00054794,120]
[399075334,1766103067104,-1535.62,0.00054794,120]
[399075335,1766103067113,-500.0,0.00054794,120]
[399075336,1766103067122,-4331.02,0.00054794,120]
[399075337,1766103067131,-500.0,0.00054794,120]
[399075338,1766103067140,-641.82,0.00054794,120]
[399075339,1766103067150,-534.04,0.00054794,120]
[399075340,1766103067159,-534.27,0.00054794,120]
[399075341,1766103067168,-611.77,0.00054794,120]
[399075342,1766103067177,-220.9,0.00054794,120]
[399075343,1766103067186,-682.25,0.00054794,120]
[399075344,1766103067195,-833.32,0.00054794,120]
[399075345,1766103067204,-735.72,0.00054794,120]
[399075346,1766103067214,-1167.0,0.00054794,120]
[399075347,1766103067223,-500.0,0.00054794,120]
[399075348,1766103067236,-1143.45,0.00054794,120]
[399075349,1766103067246,-500.0,0.00054794,120]
[399075351,1766103067255,-572.22,0.00054794,120]
[399075352,1766103067265,-821.33,0.00054794,120]
[399075353,1766103067274,-1008.83,0.00054794,120]
[399075355,1766103067283,-1300.0,0.00054795,120]
[399075356,1766103067292,-150.0,0.00054795,120]
[399075357,1766103067301,-500.0,0.00054795,120]
[399075358,1766103067311,-153.33266293,0.00054795,120]
[399075359,1766103067319,-500.0,0.00054795,120]
[399075360,1766103067328,-150.0,0.00054795,120]
[399075361,1766103067337,-150.0,0.00054795,120]
[399075362,1766103067347,-500.0,0.00054795,120]
[399075363,1766103067356,-150.0,0.00054795,120]
[399075364,1766103067365,-500.0,0.00054795,120]
[399075365,1766103067374,-265.0936571,0.00054795,120]
[399075366,1766103067383,-300.51441089,0.00054795,120]
[399075367,1766103067392,-150.0,0.00054795,120]
[399075368,1766103067401,-150.0,0.00054795,120]
[399075369,1766103067410,-150.0,0.00054795,120]
[399075370,1766103067419,-150.0,0.00054795,120]
[399075371,1766103067428,-156.09789928,0.00054795,120]
[399075372,1766103067437,-150.0,0.00054795,120]
[399075373,1766103067446,-150.0,0.00054795,120]
[399075374,1766103067455,-150.0,0.00054795,120]
[399075375,1766103067464,-153.52713657,0.00054795,120]
[399075376,1766103067474,-150.0,0.00054795,120]
[399075377,1766103067483,-150.0,0.00054795,120]
[399075378,1766103067492,-150.0,0.00054795,120]
[399075379,1766103067501,-150.0,0.00054795,120]
[399075380,1766103067511,-199.84203383,0.00054795,120]
[399075381,1766103067520,-150.0,0.00054795,120]
[399075382,1766103067529,-206.36371327,0.00054795,120]
[399075383,1766103067538,-150.0,0.00054795,120]
[399075384,1766103067547,-150.0,0.00054795,120]
[399075385,1766103067557,-150.0,0.00054795,120]
[399075386,1766103067566,-260.04653796,0.00054795,120]
[399075387,1766103067575,-150.0,0.00054795,120]
[399075388,1766103067587,-150.0,0.00054795,120]
[399075389,1766103067604,-269.95229559,0.00054795,120]
[399075390,1766103067613,-500.0,0.00054795,120]
[399075391,1766103067623,-213.39273216,0.00054795,120]
[399075392,1766103067632,-500.0,0.00054795,120]
[399075393,1766103067641,-500.0,0.00054795,120]
[399075394,1766103067651,-534.73556782,0.00054795,120]
[399075395,1766103067660,-150.0,0.00054795,120]
[399075396,1766103067669,-153.76914731,0.00054795,120]
[399075397,1766103067678,-150.0,0.00054795,120]
[399075398,1766103067688,-150.0,0.00054795,120]
[399075399,1766103067697,-156.19276191,0.00054795,120]
[399075400,1766103067706,-150.0,0.00054795,120]
[399075401,1766103067715,-150.0,0.00054795,120]
[399075402,1766103067725,-500.0,0.00054795,120]
[399075403,1766103067734,-500.0,0.00054795,120]
[399075404,1766103067743,-500.0,0.00054795,120]
[399075405,1766103067753,-500.0,0.00054795,120]
[399075406,1766103067762,-500.0,0.00054795,120]
[399075407,1766103067771,-500.0,0.00054795,120]
[399075408,1766103067780,-500.0,0.00054795,120]
[399075409,1766103067790,-500.0,0.00054795,120]
[399075410,1766103067801,-500.0,0.00054795,120]
[399075411,1766103067811,-500.0,0.00054795,120]
[399075412,1766103067820,-500.0,0.00054795,120]
[399075413,1766103067829,-500.0,0.00054795,120]
[399075414,1766103067839,-500.0,0.00054795,120]
[399075415,1766103067849,-500.0,0.00054795,120]
[399075416,1766103067859,-443.22419836,0.00054795,120]
[399075417,1766103067868,-500.0,0.00054795,120]
[399075418,1766103067879,-500.0,0.00054795,120]
[399075419,1766103067888,-500.0,0.00054795,120]
[399075420,1766103067902,-500.0,0.00054795,120]
[399075421,1766103067910,-500.0,0.00054795,120]
[399075422,1766103067920,-500.0,0.00054795,120]
[399075423,1766103067929,-500.0,0.00054795,120]
[399075424,1766103067939,-572.88453252,0.00054795,120]
[399075425,1766103067948,-500.0,0.00054795,120]
[399075426,1766103068065,-500.0,0.00054795,120]
[399075427,1766103068075,-500.0,0.00054795,120]
[399075428,1766103068084,-500.0,0.00054795,120]
[399075429,1766103068093,-500.0,0.00054795,120]
[399075430,1766103068102,-500.0,0.00054795,120]
[399075431,1766103068111,-500.0,0.00054795,120]
[399075432,1766103068121,-500.0,0.00054795,120]
[399075433,1766103068130,-296.69213397,0.00054795,120]
[399075434,1766103068139,-229.75315617,0.00054795,120]
[399075435,1766103068148,-500.0,0.00054795,120]
[399075436,1766103068158,-500.0,0.00054795,120]
[399075437,1766103068167,-500.0,0.00054795,120]
[399075438,1766103068176,-500.0,0.00054795,120]
[399075439,1766103068185,-500.0,0.00054795,120]
[399075440,1766103068194,-500.0,0.00054795,120]
[399075441,1766103068204,-500.0,0.00054795,120]
[399075442,1766103068214,-500.0,0.00054795,120]
[399075443,1766103068223,-500.0,0.00054795,120]
[399075444,1766103068241,-500.0,0.00054795,120]
[399075445,1766103068253,-500.0,0.00054795,120]
[399075446,1766103068263,-553.30089461,0.00054795,120]
[399075447,1766103068273,-500.0,0.00054795,120]
[399075448,1766103068283,-330.82650792,0.00054795,120]
[399075449,1766103068294,-500.0,0.00054795,120]
[399075450,1766103068304,-374.98222897,0.00054795,120]
[399075451,1766103068314,-500.0,0.00054795,120]
[399075452,1766103068325,-500.0,0.00054795,120]
[399075453,1766103068334,-500.0,0.00054795,120]
[399075454,1766103068345,-500.0,0.00054795,120]
[399075455,1766103068355,-453.0,0.00054795,120]
[399075456,1766103068366,-150.0,0.00054795,120]
[399075457,1766103068376,-500.0,0.00054795,120]
[399075458,1766103068386,-150.0,0.00054795,120]
[399075459,1766103068396,-509.5915611,0.00054795,120]
[399075460,1766103068406,-154.00802856,0.00054795,120]
[399075461,1766103068416,-150.0,0.00054795,120]
[399075462,1766103068426,-150.0,0.00054795,120]
[399075463,1766103068436,-150.0,0.00054795,120]
[399075464,1766103068446,-150.0,0.00054795,120]
[399075465,1766103068456,-159.50130545,0.00054795,120]
[399075466,1766103068467,-150.0,0.00054795,120]
[399075467,1766103068477,-162.13180362,0.00054795,120]
[399075468,1766103068487,-150.0,0.00054795,2]
[399075469,1766103068496,-150.0,0.00054795,120]
[399075470,1766103068506,-500.0,0.00054795,120]
[399075471,1766103068516,-600.0,0.00054795,120]
[399075472,1766103068526,-500.0,0.00054795,120]
[399075473,1766103068536,-500.0,0.00054795,120]
[399075474,1766103068546,-559.48650795,0.00054795,120]
[399075475,1766103068556,-150.0,0.00054795,120]
[399075476,1766103068566,-150.0,0.00054795,120]
[399075477,1766103068575,-500.0,0.00054795,120]
[399075478,1766103068585,-500.0,0.00054795,120]
[399075479,1766103068595,-500.0,0.00054795,120]
[399075480,1766103068604,-500.0,0.00054795,120]
[399075481,1766103068614,-500.0,0.00054795,120]
[399075482,1766103068625,-500.0,0.00054795,120]
[399075483,1766103068635,-500.0,0.00054795,120]
[399075484,1766103068645,-608.72560053,0.00054795,120]
[399075485,1766103068655,-338.41641089,0.0005486,120]
[399075486,1766103068665,-165.65323134,0.0005486,120]
[399075487,1766103068674,-202.99,0.00054999,14]
[399075488,1766103068684,-1000.0,0.00055,120]
[399075489,1766103068694,-196.18043844,0.00055,120]
[399075490,1766103068704,-686.3,0.00055068,120]
[399075491,1766103068715,-849.44,0.00055068,120]
[399075492,1766103068724,-1097.88,0.00055068,120]
[399075493,1766103068735,-500.0,0.00055068,120]
[399075494,1766103068745,-530.58,0.00055068,120]
[399075495,1766103068755,-1257.84,0.00055068,120]
[399075496,1766103068765,-818.83,0.00055068,120]
[399075497,1766103068775,-1022.93,0.00055068,120]
[399075498,1766103068785,-806.72,0.00055068,120]
[399075499,1766103068795,-527.41,0.00055068,120]
[399075500,1766103068808,-520.31,0.00055068,120]
[399075501,1766103068819,-871.78,0.00055068,120]
[399075502,1766103068828,-223.29,0.00055068,120]
[399075503,1766103068839,-1078.25,0.00055068,120]
[399075504,1766103068851,-1005.34,0.00055068,120]
[399075505,1766103068861,-703.1,0.00055068,120]
[399075506,1766103068872,-655.27,0.00055068,120]
[399075507,1766103068882,-627.9,0.00055068,120]
[399075508,1766103068891,-510.49,0.00055068,120]
[399075509,1766103068901,-796.43,0.00055068,120]
[399075510,1766103068911,-705.3,0.00055068,120]
[399075511,1766103068920,-704.94,0.00055068,21]
[399075512,1766103068930,-802.08,0.00055068,120]
[399075513,1766103068940,-516.92663533,0.00055068,120]
[399075514,1766103068949,-657.76,0.00055068,120]
[399075515,1766103068959,-1497.98,0.00055068,120]
[399075516,1766103068970,-2437.85,0.00055068,3]
[399075517,1766103068980,-629.41,0.00055068,120]
[399075518,1766103068990,-1535.62,0.00055068,120]
[399075519,1766103068999,-589.14222952,0.00055068,120]
[399075520,1766103069009,-4331.02,0.00055068,120]
[399075521,1766103069018,-500.0,0.00055068,120]
[399075522,1766103069029,-641.82,0.00055068,120]
[399075523,1766103069039,-534.04,0.00055068,120]
[399075524,1766103069048,-534.27,0.00055068,120]
[399075525,1766103069057,-611.77,0.00055068,120]
[399075526,1766103069067,-682.25,0.00055068,120]
[399075527,1766103069076,-833.32,0.00055068,120]
[399075528,1766103069086,-735.72,0.00055068,120]
[399075529,1766103069096,-1167.0,0.00055068,120]
[399075530,1766103069109,-500.0,0.00055068,120]
[399075531,1766103069119,-1143.45,0.00055068,120]
[399075532,1766103069130,-500.0,0.00055068,120]
[399075533,1766103069140,-572.22,0.00055068,120]
[399075534,1766103069149,-821.33,0.00055068,120]
[399075535,1766103069160,-1008.83,0.00055068,120]
[399075536,1766103069171,-334.61242,0.00055068,60]
[399075537,1766103069180,-192.6982997,0.00055068,60]
[399075538,1766103069190,-192.6982997,0.00055068,60]
[399075539,1766103069202,-192.6982997,0.00055068,60]
[399075540,1766103069212,-192.6982997,0.00055068,60]
[399075541,1766103069222,-192.6982997,0.00055068,60]
[399075542,1766103069233,-192.6982997,0.00055068,60]
[399075543,1766103069243,-200.0,0.00055208,120]
[399075544,1766103069255,-338.41641089,0.00055295,120]
[399075545,1766103069267,-165.65323134,0.00055295,120]
[399075546,1766103069277,-686.3,0.00055342,120]
[399075547,1766103069288,-849.44,0.00055342,120]
[399075548,1766103069297,-1097.88,0.00055342,120]
[399075549,1766103069307,-546.559814,0.00055342,120]
[399075550,1766103069317,-530.58,0.00055342,120]
[399075551,1766103069327,-1257.84,0.00055342,120]
[399075552,1766103069337,-818.83,0.00055342,120]
[399075553,1766103069346,-1022.93,0.00055342,120]
[399075554,1766103069356,-806.72,0.00055342,120]
[399075555,1766103069366,-527.41,0.00055342,120]
[399075556,1766103069375,-520.31,0.00055342,120]
[399075557,1766103069385,-871.78,0.00055342,120]
[399075558,1766103069394,-1078.25,0.00055342,120]
[399075559,1766103069404,-1005.34,0.00055342,120]
[399075560,1766103069414,-703.1,0.00055342,120]
[399075561,1766103069423,-655.27,0.00055342,120]
[399075562,1766103069432,-627.9,0.00055342,120]
[399075563,1766103069442,-796.43,0.00055342,120]
[399075564,1766103069451,-705.3,0.00055342,120]
[399075565,1766103069460,-704.94,0.00055342,21]
[399075566,1766103069470,-802.08,0.00055342,120]
[399075567,1766103069479,-657.76,0.00055342,120]
[399075568,1766103069488,-1497.98,0.00055342,120]
[399075569,1766103069498,-2437.85,0.00055342,3]
[399075570,1766103069507,-629.41,0.00055342,120]
[399075571,1766103069516,-1535.62,0.00055342,120]
[399075572,1766103069526,-4331.02,0.00055342,120]
[399075573,1766103069535,-500.0,0.00055342,120]
[399075574,1766103069544,-641.82,0.00055342,120]
[399075575,1766103069554,-534.04,0.00055342,120]
[399075576,1766103069563,-534.27,0.00055342,120]
[399075577,1766103069572,-611.77,0.00055342,120]
[399075578,1766103069581,-682.25,0.00055342,120]
[399075579,1766103069590,-833.32,0.00055342,120]
[399075580,1766103069599,-735.72,0.00055342,120]
[399075581,1766103069608,-1167.0,0.00055342,120]
[399075582,1766103069617,-178.58596982,0.00055342,120]
[399075583,1766103069627,-1143.45,0.00055342,120]
[399075584,1766103069636,-223.84134644,0.00055342,120]
[399075585,1766103069646,-572.22,0.00055342,120]
[399075586,1766103069656,-821.33,0.00055342,120]
[399075587,1766103069666,-1008.83,0.00055342,120]
[399075588,1766103069675,-200.0,0.00055494,120]
[399075589,1766103069684,-158.54796033,0.00055531,120]
[399075590,1766103069694,-686.50510457,0.00055616,120]
[399075591,1766103069704,-849.49766183,0.00055616,120]
[399075592,1766103069714,-1098.037062,0.00055616,120]
[399075593,1766103069724,-530.59130952,0.00055616,120]
[399075594,1766103069733,-1257.93626441,0.00055616,120]
[399075595,1766103069743,-819.05,0.00055616,120]
[399075596,1766103069752,-1023.07,0.00055616,120]
[399075597,1766103069761,-806.95,0.00055616,120]
[399075598,1766103069774,-527.53,0.00055616,120]
[399075599,1766103069783,-520.41141818,0.00055616,120]
[399075600,1766103069794,-871.89,0.00055616,120]
[399075601,1766103069806,-1078.31,0.00055616,120]
[399075602,1766103069816,-1005.43445581,0.00055616,120]
[399075603,1766103069826,-703.10456311,0.00055616,120]
[399075604,1766103069836,-655.35,0.00055616,120]
[399075605,1766103069847,-628.09,0.00055616,120]
[399075606,1766103069859,-796.61,0.00055616,120]
[399075607,1766103069868,-705.35,0.00055616,120]
[399075608,1766103069879,-705.05,0.00055616,21]
[399075609,1766103069889,-802.16,0.00055616,120]
[399075610,1766103069900,-657.84000001,0.00055616,120]
[399075612,1766103069909,-1498.10970902,0.00055616,120]
[399075613,1766103069919,-2438.06287403,0.00055616,3]
[399075614,1766103069929,-629.50554226,0.00055616,120]
[399075616,1766103069938,-1535.76232409,0.00055616,120]
[399075617,1766103069948,-4331.15602127,0.00055616,120]
[399075618,1766103069958,-378.3,0.00055616,120]
[399075619,1766103069968,-642.01602267,0.00055616,120]
[399075620,1766103069977,-534.22649725,0.00055616,120]
[399075621,1766103069987,-611.89367491,0.00055616,120]
[399075622,1766103069997,-534.28,0.00055616,120]
[399075623,1766103070007,-682.35,0.00055616,120]
[399075624,1766103070018,-833.33596306,0.00055616,120]
[399075625,1766103070027,-735.76260161,0.00055616,120]
[399075626,1766103070037,-1167.1543941,0.00055616,120]
[399075627,1766103070047,-1143.66057158,0.00055616,120]
[399075628,1766103070057,-572.27142044,0.00055616,120]
[399075629,1766103070067,-821.53614589,0.00055616,120]
[399075630,1766103070076,-1008.8647331,0.00055616,120]
[399075631,1766103070085,-338.41641089,0.00055729,120]
[399075632,1766103070095,-165.65323134,0.00055729,120]
[399075633,1766103070105,-289.19915606,0.00055852,2]
[399075634,1766103070114,-192.6982997,0.0005589,60]
[399075635,1766103070123,-192.6982997,0.0005589,60]
[399075636,1766103070132,-192.6982997,0.0005589,60]
[399075637,1766103070141,-192.6982997,0.0005589,60]
[399075638,1766103070150,-192.6982997,0.0005589,60]
[399075639,1766103070159,-192.6982997,0.0005589,60]
[399075640,1766103070169,-192.6982997,0.0005589,60]
[399075641,1766103070178,-192.6982997,0.0005589,60]
[399075642,1766103070188,-192.6982997,0.0005589,60]
[399075643,1766103070199,-192.6982997,0.0005589,60]
[399075644,1766103070209,-192.6982997,0.0005589,60]
[399075645,1766103070218,-192.6982997,0.0005589,60]
[399075646,1766103070227,-385.2506182,0.0005589,60]
[399075647,1766103070236,-192.6982997,0.0005589,60]
[399075648,1766103070248,-192.6982997,0.0005589,60]
[399075649,1766103070257,-192.6982997,0.0005589,60]
[399075650,1766103070266,-192.6982997,0.0005589,60]
[399075651,1766103070277,-1300.0,0.00055891,120]
[399075652,1766103070286,-681.83,0.000559,2]
[399075653,1766103070295,-145400.97607091,0.00056,120]
[399075654,1766103070304,-1000.0,0.00056,120]
[399075655,1766103070313,-209.83829001,0.00056,120]
[399075656,1766103070322,-1000.0,0.00056,120]
[399075657,1766103070331,-500.0,0.00056,120]
[399075658,1766103070341,-165.0,0.00056,120]
[399075659,1766103070463,-1821.14,0.00056,14]
[399075660,1766103070473,-338.41641089,0.00056163,120]
[399075661,1766103070482,-165.65323134,0.00056163,120]
[399075662,1766103070491,-200.0,0.00056235,120]
[399075663,1766103070500,-158.54796033,0.00056321,120]
[399075664,1766103070510,-338.41641089,0.00056597,120]
[399075665,1766103070519,-165.65323134,0.00056597,120]
[399075666,1766103070529,-553.64373807,0.00056699,30]
[399075667,1766103070538,-250.0,0.00056699,30]
[399075668,1766103070547,-250.0,0.00056699,30]
[399075669,1766103070556,-192.6982997,0.00056712,60]
[399075670,1766103070566,-192.6982997,0.00056712,60]
[399075671,1766103070575,-53397.5,0.000569,120]
[399075672,1766103070585,-1300.0,0.00056987,120]
[399075673,1766103070595,-12988.25761853,0.00057,120]
[399075674,1766103070605,-250000.0,0.00057,120]
[399075675,1766103070614,-1000.0,0.00057,120]
[399075676,1766103070624,-391091.50732962,0.00057,10]
[399075677,1766103070819,-152.377659,0.00049589,120]
[399075678,1766103070829,-152.377659,0.00049589,120]
[399075679,1766103070839,-78.16296792,0.00049863,120]
[399075680,1766103070962,-74.21469108,0.00049863,120]
[399075681,1766103070971,-152.377659,0.00049863,120]
[399075682,1766103070981,-152.377659,0.000499,120]
[399075683,1766103070991,-62.65033678,0.000499,120]
[399075684,1766103071003,-89.72732222,0.000499,120]
[399075685,1766103071012,-152.377659,0.00050136,120]
[399075686,1766103071022,-152.377659,0.00050684,120]
[399075687,1766103071031,-500.0,0.00053698,120]
[399075688,1766103071041,-500.0,0.00053972,120]
[399075689,1766103071050,-500.0,0.00054246,120]
[399075690,1766103071060,-500.0,0.0005452,120]
[399075691,1766103071071,-500.0,0.00054794,120]
[399075692,1766103071080,-500.0,0.00055068,120]
[399075693,1766103071089,-500.0,0.00055342,120]
[399075694,1766103071098,-204.62942576,0.00055616,120]
[399075695,1766103071107,-26359.08661418,0.00057,10]
[399075696,1766103071118,-290.45273073,0.00057032,120]
[399075697,1766103071129,-47.96368016,0.00057032,120]
[399075698,1766103071139,-165.65323134,0.00057032,120]
[399075699,1766103071148,-158.54796033,0.0005711,120]
[399075700,1766103071157,-416.01103047,0.00057234,120]
[399075701,1766103071167,-249.89389458,0.00057466,120]
[399075702,1766103071297,-500.0,0.00049315,120]
[399075703,1766103071309,-152.377659,0.00049589,120]
[399075704,1766103071319,-500.0,0.00049589,120]
[399075705,1766103071330,-152.377659,0.00049589,120]
[399075706,1766103071340,-152.377659,0.00049863,120]
[399075707,1766103071350,-500.0,0.00049863,120]
[399075708,1766103071360,-152.377659,0.00049863,120]
[399075709,1766103071371,-152.377659,0.000499,120]
[399075710,1766103071380,-152.377659,0.00050136,120]
[399075711,1766103071391,-152.377659,0.00050136,120]
[399075712,1766103071401,-500.0,0.00050136,120]